[Event "Polofinale MCR juniorek 2023"]
[Site "Czech Republic"]
[Date "2023.11.14"]
[Round "4.3"]
[White "Havelkova, Beata"]
[Black "Markina, Sofiia"]
[Result "1/2-1/2"]
[TimeControl "90 min per 40 moves + 15 min + 30 sec / move from move 1"]
[WhiteFideId "23709405"]
[BlackFideId "23744014"]
[WhiteElo "1736"]
[BlackElo "1563"]

1. e4 {[%clk 01:31:00]} {[%emt 11:25:08]} c6 {[%clk 01:30:50]} {[%emt
00:00:10]} 2. d4 {[%clk 01:31:25]} {[%emt 00:00:04]} d5 {[%clk 01:31:16]}
{[%emt 00:00:05]} 3. exd5 {[%clk 01:31:51]} {[%emt 00:00:04]} cxd5 {[%clk
01:31:41]} {[%emt 00:00:05]} 4. Bd3 {[%clk 01:32:16]} {[%emt 00:00:04]} Nc6
{[%clk 01:32:07]} {[%emt 00:00:04]} 5. c3 {[%clk 01:32:42]} {[%emt 00:00:04]}
Nf6 {[%clk 01:32:22]} {[%emt 00:00:15]} 6. Bf4 {[%clk 01:33:05]} {[%emt
00:00:06]} Bg4 {[%clk 01:32:37]} {[%emt 00:00:16]} 7. Qb3 {[%clk 01:33:30]} Qd7
{[%clk 01:32:52]} {[%emt 00:00:20]} 8. Nd2 {[%clk 01:33:35]} e6 {[%clk
01:32:02]} {[%emt 00:01:44]} 9. Ngf3 {[%emt 00:14:42]} Bd6 10. Bxd6 {[%clk
01:21:00]} {[%emt 00:02:23]} Qxd6 {[%clk 01:29:06]} {[%emt 00:00:27]} 11. O-O
{[%clk 01:21:05]} {[%emt 00:00:24]} O-O {[%clk 01:29:18]} {[%emt 00:00:18]} 12.
Rae1 {[%clk 01:18:13]} {[%emt 00:03:21]} Nd7 {[%clk 01:23:25]} {[%emt
00:06:24]} 13. Nh4 {[%clk 01:09:07]} {[%emt 00:09:35]} Bh5 {[%clk 01:13:16]}
{[%emt 00:10:39]} 14. f4 {[%clk 01:03:03]} {[%emt 00:06:34]} f6 {[%clk
01:07:10]} {[%emt 00:06:37]} 15. Qc2 {[%clk 00:59:56]} {[%emt 00:03:36]} h6
{[%clk 01:05:25]} {[%emt 00:02:15]} 16. Bh7+ {[%clk 00:58:31]} {[%emt
00:01:55]} Kh8 {[%clk 01:05:33]} {[%emt 00:00:23]} 17. Bg6 {[%clk 00:52:53]}
{[%emt 00:06:07]} Bxg6 {[%clk 00:59:27]} {[%emt 00:06:36]} 18. Nxg6+ {[%clk
00:53:19]} {[%emt 00:00:05]} Kg8 {[%clk 00:59:48]} {[%emt 00:00:09]} 19. Nxf8
{[%clk 00:53:31]} {[%emt 00:00:17]} Rxf8 {[%clk 01:00:04]} {[%emt 00:00:14]} 20.
Nf3 {[%clk 00:49:35]} {[%emt 00:04:25]} Rc8 {[%clk 00:47:35]} {[%emt 00:13:00]}
21. Qe2 {[%clk 00:48:29]} {[%emt 00:01:35]} Nf8 {[%clk 00:47:47]} {[%emt
00:00:18]} 22. Nh4 {[%clk 00:46:36]} {[%emt 00:02:22]} Re8 {[%clk 00:45:05]}
{[%emt 00:03:12]} 23. Qh5 {[%clk 00:45:43]} {[%emt 00:01:23]} Qd7 {[%clk
00:44:06]} {[%emt 00:01:30]} 24. Re3 {[%clk 00:44:12]} {[%emt 00:01:59]} Re7
{[%clk 00:40:31]} {[%emt 00:04:06]} 25. Rg3 {[%clk 00:40:11]} {[%emt 00:04:30]}
Kh8 {[%clk 00:36:23]} {[%emt 00:04:38]} 26. Ng6+ {[%clk 00:39:18]} {[%emt
00:01:23]} Nxg6 {[%clk 00:36:50]} {[%emt 00:00:03]} 27. Rxg6 {[%clk 00:39:35]}
{[%emt 00:00:13]} Qe8 {[%clk 00:34:25]} {[%emt 00:02:56]} 28. Rf3 {[%clk
00:39:44]} {[%emt 00:00:20]} Kh7 {[%clk 00:34:28]} {[%emt 00:00:29]} 29. Rfg3
{[%clk 00:38:36]} {[%emt 00:01:37]} Qf8 {[%clk 00:34:36]} {[%emt 00:00:22]} 30.
Rh3 {[%clk 00:33:21]} {[%emt 00:05:46]} a6 {[%clk 00:29:50]} {[%emt 00:05:16]}
31. Rgg3 {[%clk 00:31:42]} {[%emt 00:02:08]} b5 {[%clk 00:28:15]} {[%emt
00:02:06]} 32. Qg6+ {[%clk 00:30:48]} {[%emt 00:01:24]} Kh8 {[%clk 00:28:30]}
{[%emt 00:00:14]} 33. Rh4 {[%clk 00:28:05]} {[%emt 00:03:13]} Nd8 {[%clk
00:27:42]} {[%emt 00:01:18]} 34. Qd3 {[%clk 00:21:54]} {[%emt 00:06:40]} Nf7
{[%clk 00:25:00]} {[%emt 00:03:13]} 35. Rf3 {[%clk 00:19:02]} {[%emt 00:03:22]}
Nd6 {[%clk 00:24:52]} {[%emt 00:00:38]} 36. g4 {[%clk 00:18:46]} {[%emt
00:00:46]} Rf7 {[%clk 00:24:55]} {[%emt 00:00:27]} 37. Qg6 {[%clk 00:18:39]}
{[%emt 00:00:37]} Ne4 {[%clk 00:24:24]} {[%emt 00:01:01]} 38. Rfh3 {[%clk
00:17:44]} {[%emt 00:01:25]} Qg8 {[%clk 00:24:02]} {[%emt 00:00:52]} 39. Rh5
{[%clk 00:15:04]} {[%emt 00:03:10]} a5 {[%clk 00:20:32]} {[%emt 00:04:00]} 40.
g5 {[%clk 00:15:08]} {[%emt 00:00:27]} fxg5 {[%clk 00:20:50]} {[%emt 00:00:12]}
41. fxg5 {[%clk 00:15:21]} {[%emt 00:00:16]} Rf1+ {[%clk 00:20:53]} {[%emt
00:00:28]} 42. Kg2 {[%clk 00:14:29]} {[%emt 00:01:22]} Rf2+ {[%clk 00:21:19]}
{[%emt 00:00:04]} 43. Kg1 {[%clk 00:14:32]} {[%emt 00:00:28]} Rf1+ {[%clk
00:21:45]} {[%emt 00:00:04]} 44. Kg2 {[%clk 00:14:58]} {[%emt 00:00:04]}
1/2-1/2

[Event "Polofinale MCR juniorek 2023"]
[Site "Czech Republic"]
[Date "2023.11.14"]
[Round "4.4"]
[White "Jakubse, Tamae Severina"]
[Black "Bartova, Hana"]
[Result "1-0"]
[TimeControl "90 min per 40 moves + 15 min + 30 sec / move from move 1"]
[WhiteFideId "23745975"]
[BlackFideId "23732695"]
[WhiteElo "1679"]
[BlackElo "1270"]

1. e4 {[%clk 01:30:57]} {[%emt 00:00:03]} e5 {[%clk 01:30:17]} {[%emt
00:00:43]} 2. Nf3 {[%clk 01:30:55]} {[%emt 00:00:32]} Nf6 {[%clk 01:29:47]}
{[%emt 00:01:01]} 3. Nc3 {[%clk 01:30:38]} {[%emt 00:00:48]} Nc6 {[%clk
01:29:19]} {[%emt 00:00:58]} 4. d4 {[%clk 01:30:45]} {[%emt 00:00:23]} exd4
{[%clk 01:29:27]} {[%emt 00:00:22]} 5. Nxd4 {[%clk 01:30:59]} {[%emt 00:00:17]}
Bb4 {[%clk 01:29:14]} {[%emt 00:00:42]} 6. Nxc6 {[%clk 01:30:08]} {[%emt
00:01:22]} bxc6 {[%clk 01:29:11]} {[%emt 00:00:33]} 7. Bd3 {[%clk 01:29:49]}
{[%emt 00:00:48]} d5 {[%clk 01:27:57]} {[%emt 00:01:45]} 8. exd5 {[%clk
01:26:43]} {[%emt 00:03:36]} cxd5 {[%clk 01:27:16]} {[%emt 00:01:10]} 9. Qe2+
{[%clk 01:21:22]} {[%emt 00:05:51]} Qe7 {[%clk 01:11:39]} {[%emt 00:16:06]} 10.
Qxe7+ {[%clk 01:14:39]} {[%emt 00:07:13]} Kxe7 {[%clk 01:09:07]} {[%emt
00:03:02]} 11. O-O {[%clk 01:13:19]} {[%emt 00:01:51]} Re8 {[%clk 01:07:26]}
{[%emt 00:02:10]} 12. Nb5 {[%clk 01:10:03]} {[%emt 00:03:45]} Kd8 {[%clk
01:00:50]} {[%emt 00:07:06]} 13. a3 {[%clk 01:02:38]} {[%emt 00:07:56]} Bc5
{[%clk 00:55:12]} {[%emt 00:06:08]} 14. b4 {[%clk 00:48:50]} {[%emt 00:14:18]}
a6 {[%clk 00:41:16]} {[%emt 00:14:26]} 15. bxc5 {[%clk 00:46:17]} {[%emt
00:03:03]} axb5 {[%clk 00:41:39]} {[%emt 00:00:07]} 16. Bxb5 {[%clk 00:46:26]}
{[%emt 00:00:21]} Re6 {[%clk 00:39:53]} {[%emt 00:02:16]} 17. c4 {[%clk
00:30:05]} {[%emt 00:16:51]} d4 {[%clk 00:34:30]} {[%emt 00:05:54]} 18. c6
{[%clk 00:29:19]} {[%emt 00:01:16]} Ba6 {[%clk 00:31:39]} {[%emt 00:03:21]} 19.
Rd1 {[%clk 00:27:25]} {[%emt 00:02:23]} Bxb5 {[%clk 00:29:42]} {[%emt
00:02:28]} 20. cxb5 {[%clk 00:27:34]} {[%emt 00:00:21]} Ra4 {[%clk 00:30:03]}
{[%emt 00:00:09]} 21. Bb2 {[%clk 00:20:41]} {[%emt 00:07:23]} Rd6 {[%clk
00:14:45]} {[%emt 00:15:48]} 22. Rd3 {[%clk 00:19:24]} {[%emt 00:01:47]} Rd5
{[%clk 00:12:30]} {[%emt 00:02:45]} 23. Rad1 {[%clk 00:19:05]} {[%emt
00:00:48]} Rxb5 {[%clk 00:10:44]} {[%emt 00:02:16]} 24. Bxd4 {[%clk 00:17:52]}
{[%emt 00:01:44]} Ne4 {[%clk 00:05:18]} {[%emt 00:05:56]} 25. Bf6+ {[%clk
00:17:36]} {[%emt 00:00:46]} 1-0

[Event "Polofinale MCR juniorek 2023"]
[Site "Czech Republic"]
[Date "2023.11.14"]
[Round "4.5"]
[White "Stavova, Helena"]
[Black "Brezikova, Beata"]
[Result "0-1"]
[TimeControl "90 min per 40 moves + 15 min + 30 sec / move from move 1"]
[WhiteFideId "23714751"]
[BlackFideId "23727250"]
[WhiteElo "1425"]
[BlackElo "1622"]

1. e4 {[%clk 01:30:56]} {[%emt 00:00:04]} e5 {[%clk 01:30:57]} {[%emt
00:00:03]} 2. Nf3 {[%clk 01:31:12]} {[%emt 00:00:13]} Nc6 {[%clk 01:31:22]}
{[%emt 00:00:05]} 3. d4 {[%clk 01:31:23]} {[%emt 00:00:19]} exd4 {[%clk
01:31:45]} {[%emt 00:00:08]} 4. Nxd4 {[%clk 01:31:46]} {[%emt 00:00:07]} Qf6
{[%clk 01:32:08]} {[%emt 00:00:07]} 5. Be3 {[%clk 01:32:01]} {[%emt 00:00:14]}
Bc5 {[%clk 01:32:28]} {[%emt 00:00:10]} 6. c3 {[%clk 01:32:21]} {[%emt
00:00:11]} Nge7 {[%clk 01:32:46]} {[%emt 00:00:12]} 7. Bc4 {[%clk 01:31:57]}
{[%emt 00:00:54]} Ne5 {[%clk 01:32:32]} {[%emt 00:00:44]} 8. Bb3 {[%clk
01:27:59]} {[%emt 00:04:28]} Qg6 {[%clk 01:30:37]} {[%emt 00:02:25]} 9. O-O
{[%clk 01:26:40]} {[%emt 00:01:49]} d6 {[%clk 01:25:34]} {[%emt 00:05:34]} 10.
f3 {[%clk 01:24:16]} {[%emt 00:02:54]} O-O {[%clk 01:22:40]} {[%emt 00:03:24]}
11. Nd2 {[%clk 01:11:31]} {[%emt 00:13:14]} h5 {[%clk 01:13:33]} {[%emt
00:09:37]} 12. Qe2 {[%clk 01:06:05]} {[%emt 00:05:56]} Kh8 {[%clk 01:05:59]}
{[%emt 00:08:04]} 13. f4 {[%clk 00:53:03]} {[%emt 00:13:32]} Bg4 {[%clk
00:58:55]} {[%emt 00:07:35]} 14. Qf2 {[%clk 00:50:42]} {[%emt 00:02:49]} Nd3
{[%clk 00:55:29]} {[%emt 00:03:57]} 15. Qh4 {[%clk 00:49:18]} {[%emt 00:01:54]}
Nc6 {[%clk 00:52:46]} {[%emt 00:03:14]} 16. Bc2 {[%clk 00:40:55]} {[%emt
00:08:52]} Bxd4 {[%clk 00:49:32]} {[%emt 00:03:43]} 17. Bxd4 {[%clk 00:29:04]}
{[%emt 00:12:21]} Be2 {[%clk 00:45:17]} {[%emt 00:04:45]} 18. Bxd3 {[%clk
00:27:36]} {[%emt 00:01:58]} Bxd3 {[%clk 00:45:12]} {[%emt 00:00:35]} 19. f5
{[%clk 00:23:11]} {[%emt 00:04:56]} Qh6 {[%clk 00:42:32]} {[%emt 00:03:10]} 20.
Rf3 {[%clk 00:17:43]} {[%emt 00:05:59]} Nxd4 {[%clk 00:25:43]} {[%emt
00:17:19]} 21. Rxd3 {[%clk 00:17:44]} {[%emt 00:00:29]} Nc6 {[%clk 00:24:48]}
{[%emt 00:01:25]} 22. Nf3 {[%clk 00:15:34]} {[%emt 00:02:39]} Rae8 {[%clk
00:22:50]} {[%emt 00:02:29]} 23. Re1 {[%clk 00:13:31]} {[%emt 00:02:32]} Ne5
{[%clk 00:17:26]} {[%emt 00:05:55]} 24. Nxe5 {[%clk 00:12:54]} {[%emt
00:01:07]} Rxe5 {[%clk 00:17:46]} {[%emt 00:00:10]} 25. Rh3 {[%clk 00:12:22]}
{[%emt 00:01:02]} Rfe8 {[%clk 00:17:10]} {[%emt 00:01:06]} 26. Qxh5 {[%clk
00:10:08]} {[%emt 00:02:44]} Qxh5 {[%clk 00:17:25]} {[%emt 00:00:15]} 27. Rxh5+
{[%clk 00:10:32]} {[%emt 00:00:06]} Kg8 {[%clk 00:17:50]} {[%emt 00:00:05]} 28.
Rh4 {[%clk 00:10:51]} {[%emt 00:00:11]} Rxf5 {[%clk 00:17:32]} {[%emt
00:00:49]} 29. c4 {[%clk 00:08:47]} {[%emt 00:02:35]} Rfe5 {[%clk 00:16:37]}
{[%emt 00:01:24]} 30. Kf2 {[%clk 00:08:07]} {[%emt 00:01:10]} g6 {[%clk
00:13:27]} {[%emt 00:03:41]} 31. Ke3 {[%clk 00:04:21]} {[%emt 00:04:14]} Kg7
{[%clk 00:11:37]} {[%emt 00:02:21]} 32. Kd3 {[%clk 00:03:05]} {[%emt 00:01:46]}
f5 {[%clk 00:11:04]} {[%emt 00:01:03]} 33. Rh3 {[%clk 00:01:36]} {[%emt
00:01:59]} Rxe4 {[%clk 00:09:42]} {[%emt 00:01:52]} 34. Rxe4 {[%clk 00:01:43]}
{[%emt 00:00:23]} Rxe4 {[%clk 00:09:52]} {[%emt 00:00:20]} 35. Rf3 {[%clk
00:01:28]} {[%emt 00:00:44]} a6 {[%clk 00:07:58]} {[%emt 00:02:26]} 36. a4
{[%clk 00:01:02]} {[%emt 00:00:56]} c5 {[%clk 00:06:05]} {[%emt 00:02:22]} 37.
b3 {[%clk 00:00:54]} {[%emt 00:00:39]} b6 {[%clk 00:06:23]} {[%emt 00:00:12]}
38. h3 {[%clk 00:01:03]} {[%emt 00:00:20]} Rd4+ {[%clk 00:06:03]} {[%emt
00:00:50]} 39. Kc3 {[%clk 00:00:52]} {[%emt 00:00:42]} d5 {[%clk 00:05:59]}
{[%emt 00:00:34]} 40. Rd3 {[%clk 00:01:01]} {[%emt 00:00:21]} Rxd3+ {[%clk
00:05:49]} {[%emt 00:00:41]} 41. Kxd3 {[%clk 00:01:26]} {[%emt 00:00:05]} d4
{[%clk 00:06:09]} {[%emt 00:00:10]} 0-1

[Event "Polofinale MCR juniorek 2023"]
[Site "Czech Republic"]
[Date "2023.11.14"]
[Round "4.6"]
[White "Hosova, Sandra"]
[Black "Stavova, Marketa"]
[Result "1-0"]
[TimeControl "90 min per 40 moves + 15 min + 30 sec / move from move 1"]
[WhiteFideId "397717"]
[BlackFideId "23714824"]
[WhiteElo "1730"]
[BlackElo "1433"]

1. c4 {[%clk 01:28:07]} {[%emt 00:02:52]} e5 {[%clk 01:30:21]} {[%emt
00:00:40]} 2. Nc3 {[%clk 01:28:27]} {[%emt 00:00:10]} Nc6 {[%clk 01:30:18]}
{[%emt 00:00:33]} 3. g3 {[%clk 01:28:25]} {[%emt 00:00:32]} g6 {[%clk
01:30:12]} {[%emt 00:00:37]} 4. Bg2 {[%clk 01:28:19]} {[%emt 00:00:36]} Bg7
{[%clk 01:30:05]} {[%emt 00:00:37]} 5. e3 {[%clk 01:28:03]} {[%emt 00:00:46]}
d6 {[%clk 01:29:24]} {[%emt 00:01:11]} 6. d3 {[%clk 01:26:54]} {[%emt
00:01:38]} Be6 {[%clk 01:28:42]} {[%emt 00:01:13]} 7. Nge2 {[%clk 01:26:46]}
{[%emt 00:00:38]} Nge7 {[%clk 01:27:21]} {[%emt 00:01:51]} 8. Nd5 {[%clk
01:25:20]} {[%emt 00:01:56]} O-O {[%clk 01:26:00]} {[%emt 00:01:51]} 9. O-O
{[%clk 01:25:05]} {[%emt 00:00:45]} Qd7 {[%clk 01:24:38]} {[%emt 00:01:52]} 10.
Re1 {[%clk 01:18:26]} {[%emt 00:07:09]} Rab8 {[%clk 01:21:37]} {[%emt
00:03:32]} 11. Rb1 {[%clk 01:17:40]} {[%emt 00:01:16]} Bh3 {[%clk 01:20:18]}
{[%emt 00:01:49]} 12. Bxh3 {[%clk 01:14:31]} {[%emt 00:03:39]} Qxh3 {[%clk
01:20:24]} {[%emt 00:00:24]} 13. Nxc7 {[%clk 01:14:10]} {[%emt 00:00:52]} Nf5
{[%clk 01:14:57]} {[%emt 00:05:57]} 14. Kh1 {[%clk 01:06:24]} {[%emt 00:08:16]}
Nh6 {[%clk 01:11:50]} {[%emt 00:03:37]} 15. Ng1 {[%clk 01:04:30]} {[%emt
00:02:24]} Qd7 {[%clk 01:10:30]} {[%emt 00:01:50]} 16. Nd5 {[%clk 01:04:13]}
{[%emt 00:00:47]} Ng4 {[%clk 01:08:45]} {[%emt 00:02:15]} 17. Kg2 {[%clk
00:59:25]} {[%emt 00:05:18]} f5 {[%clk 01:05:01]} {[%emt 00:04:14]} 18. b4
{[%clk 00:52:34]} {[%emt 00:07:22]} b6 {[%clk 01:02:26]} {[%emt 00:03:05]} 19.
Bd2 {[%clk 00:45:15]} {[%emt 00:07:48]} Qb7 {[%clk 01:00:52]} {[%emt 00:02:04]}
20. f3 {[%clk 00:41:06]} {[%emt 00:04:40]} Nf6 {[%clk 01:00:10]} {[%emt
00:01:11]} 21. Nxf6+ {[%clk 00:38:03]} {[%emt 00:03:33]} Rxf6 {[%clk 01:00:23]}
{[%emt 00:00:17]} 22. a4 {[%clk 00:37:46]} {[%emt 00:00:47]} Ne7 {[%clk
00:58:11]} {[%emt 00:02:41]} 23. a5 {[%clk 00:32:43]} {[%emt 00:05:33]} Qc6
{[%clk 00:56:16]} {[%emt 00:02:24]} 24. b5 {[%clk 00:31:27]} {[%emt 00:01:47]}
Qc7 {[%clk 00:55:56]} {[%emt 00:00:50]} 25. axb6 {[%clk 00:31:09]} {[%emt
00:00:48]} axb6 {[%clk 00:56:19]} {[%emt 00:00:07]} 26. Qb3 {[%clk 00:29:29]}
{[%emt 00:02:10]} Kh8 {[%clk 00:56:12]} {[%emt 00:00:37]} 27. Ra1 {[%clk
00:29:09]} {[%emt 00:00:49]} Rff8 {[%clk 00:55:51]} {[%emt 00:00:50]} 28. Ra6
{[%clk 00:28:26]} {[%emt 00:01:14]} Qb7 {[%clk 00:53:24]} {[%emt 00:02:58]} 29.
Bb4 {[%clk 00:25:47]} {[%emt 00:03:09]} Nc8 {[%clk 00:52:32]} {[%emt 00:01:22]}
30. Bd2 {[%clk 00:19:42]} {[%emt 00:06:35]} Qf7 {[%clk 00:50:45]} {[%emt
00:02:17]} 31. Rea1 {[%clk 00:15:59]} {[%emt 00:04:14]} g5 {[%clk 00:48:34]}
{[%emt 00:02:40]} 32. Ra8 {[%clk 00:11:39]} {[%emt 00:04:49]} Rb7 {[%clk
00:48:33]} {[%emt 00:00:32]} 33. R1a2 {[%clk 00:09:48]} {[%emt 00:02:21]} Qf6
{[%clk 00:46:00]} {[%emt 00:03:02]} 34. e4 {[%clk 00:07:19]} f4 {[%clk
00:46:00]} 35. g4 {[%clk 00:07:19]} Ne7 {[%clk 00:43:15]} {[%emt 00:07:19]} 36.
Be1 {[%clk 00:06:17]} Rbb8 {[%clk 00:42:28]} {[%emt 00:02:44]} 37. Rxb8 {[%clk
00:06:25]} Rxb8 {[%clk 00:42:28]} 38. Bf2 {[%clk 00:06:25]} Qf8 {[%clk
00:42:28]} 39. Ne2 {[%clk 00:06:25]} Qd8 {[%clk 00:42:28]} 40. Nc3 {[%clk
00:06:25]} Bf8 {[%clk 00:42:28]} 41. Ra6 {[%clk 00:06:25]} Qc7 {[%clk
00:42:28]} 42. Qd1 {[%clk 00:06:25]} Qc8 {[%clk 00:42:28]} 43. Na4 {[%clk
00:06:25]} Ng6 {[%clk 00:42:28]} 44. Nxb6 {[%clk 00:06:25]} Qd8 {[%clk
00:42:28]} 45. Nd5 {[%clk 00:06:25]} Qc8 {[%clk 00:42:28]} 46. Ra7 {[%clk
00:06:25]} Bg7 {[%clk 00:42:28]} 47. b6 {[%clk 00:06:25]} Nf8 {[%clk 00:42:28]}
48. Qa4 {[%clk 00:06:25]} 1-0

[Event "Polofinale MCR juniorek 2023"]
[Site "Czech Republic"]
[Date "2023.11.14"]
[Round "4.7"]
[White "Nagyova, Daniela"]
[Black "Macova, Marketa"]
[Result "1-0"]
[TimeControl "90 min per 40 moves + 15 min + 30 sec / move from move 1"]
[WhiteFideId "390070"]
[BlackFideId "23715588"]
[WhiteElo "1872"]
[BlackElo "1416"]

1. e4 {[%clk 01:30:55]} {[%emt 00:00:03]} e5 {[%clk 01:30:52]} {[%emt
00:00:08]} 2. Nf3 {[%clk 01:31:17]} {[%emt 00:00:08]} Nc6 {[%clk 01:31:13]}
{[%emt 00:00:09]} 3. Bc4 {[%clk 01:31:33]} {[%emt 00:00:14]} Bc5 {[%clk
01:31:28]} {[%emt 00:00:15]} 4. b4 {[%clk 01:31:22]} {[%emt 00:00:41]} Bxb4
{[%clk 01:31:41]} {[%emt 00:00:16]} 5. c3 {[%clk 01:31:41]} {[%emt 00:00:11]}
Ba5 {[%clk 01:31:48]} {[%emt 00:00:24]} 6. d4 {[%clk 01:31:23]} {[%emt
00:00:47]} exd4 {[%clk 01:31:49]} {[%emt 00:00:29]} 7. O-O {[%clk 01:30:45]}
{[%emt 00:01:08]} dxc3 {[%clk 01:31:20]} {[%emt 00:00:59]} 8. Qb3 {[%clk
01:28:41]} {[%emt 00:02:34]} Qf6 {[%clk 01:30:40]} {[%emt 00:01:10]} 9. e5
{[%clk 01:26:40]} {[%emt 00:02:30]} Qg6 {[%clk 01:29:13]} {[%emt 00:01:57]} 10.
Ba3 {[%clk 01:05:17]} {[%emt 00:21:53]} Nge7 {[%clk 01:28:05]} {[%emt
00:01:38]} 11. Bb5 {[%clk 01:01:07]} {[%emt 00:04:40]} b6 {[%clk 01:22:21]}
{[%emt 00:06:15]} 12. Nxc3 {[%clk 00:53:57]} {[%emt 00:07:40]} Bb7 {[%clk
01:14:47]} {[%emt 00:08:04]} 13. Rfd1 {[%clk 00:39:46]} {[%emt 00:14:41]} Nxe5
{[%clk 01:10:17]} {[%emt 00:04:59]} 14. Nh4 {[%clk 00:37:27]} {[%emt 00:02:49]}
Nf3+ {[%clk 01:00:03]} {[%emt 00:10:44]} 15. Nxf3 {[%clk 00:35:28]} {[%emt
00:02:29]} Bxf3 {[%clk 01:00:18]} {[%emt 00:00:15]} 16. Bxd7+ {[%clk 00:33:51]}
{[%emt 00:02:07]} Kf8 {[%clk 00:59:54]} {[%emt 00:00:55]} 17. Bxe7+ {[%clk
00:29:17]} {[%emt 00:05:05]} Kxe7 {[%clk 00:59:41]} {[%emt 00:00:42]} 18. Nd5+
{[%clk 00:24:59]} {[%emt 00:04:47]} Bxd5 {[%clk 00:53:34]} {[%emt 00:06:37]} 19.
Qxd5 {[%clk 00:25:21]} {[%emt 00:00:09]} Rhd8 {[%clk 00:44:57]} {[%emt
00:09:07]} 20. Qe5+ {[%clk 00:24:50]} {[%emt 00:01:01]} Kf8 {[%clk 00:45:05]}
{[%emt 00:00:21]} 21. Qxc7 {[%clk 00:24:28]} {[%emt 00:00:52]} Qf6 {[%clk
00:44:42]} {[%emt 00:00:52]} 22. Rab1 {[%clk 00:19:45]} {[%emt 00:05:13]} Qe7
{[%clk 00:42:15]} {[%emt 00:02:58]} 23. Qc6 {[%clk 00:16:09]} {[%emt 00:04:06]}
Qa3 {[%clk 00:37:52]} {[%emt 00:04:52]} 24. Rd5 {[%clk 00:12:48]} {[%emt
00:03:52]} Qxa2 {[%clk 00:35:36]} {[%emt 00:02:46]} 25. Rbd1 {[%clk 00:13:03]}
{[%emt 00:00:14]} Qe2 {[%clk 00:32:35]} {[%emt 00:03:30]} 26. h3 {[%clk
00:08:17]} {[%emt 00:05:17]} Be1 {[%clk 00:28:01]} {[%emt 00:05:04]} 27. Qd6+
{[%clk 00:06:28]} {[%emt 00:02:19]} Kg8 {[%clk 00:28:18]} {[%emt 00:00:13]} 28.
Qf4 {[%clk 00:05:38]} {[%emt 00:01:20]} Ba5 {[%clk 00:24:03]} {[%emt 00:04:45]}
29. Qh4 {[%clk 00:04:26]} {[%emt 00:01:42]} Rf8 {[%clk 00:22:25]} {[%emt
00:02:08]} 30. Bg4 {[%clk 00:02:47]} {[%emt 00:02:09]} Qe4 {[%clk 00:19:38]}
{[%emt 00:03:17]} 31. Qg3 {[%clk 00:02:06]} {[%emt 00:01:12]} Qe8 {[%clk
00:15:11]} {[%emt 00:04:57]} 32. h4 {[%clk 00:01:38]} {[%emt 00:00:58]} h6
{[%clk 00:14:54]} {[%emt 00:00:47]} 33. Bf3 {[%clk 00:01:46]} {[%emt 00:00:22]}
Rc8 {[%clk 00:13:39]} {[%emt 00:01:45]} 34. Rd6 {[%clk 00:01:36]} {[%emt
00:00:40]} Kh8 {[%clk 00:12:18]} {[%emt 00:01:51]} 35. Qf4 {[%clk 00:01:45]}
{[%emt 00:00:21]} f6 {[%clk 00:11:19]} {[%emt 00:01:29]} 36. g4 {[%clk
00:01:30]} {[%emt 00:00:45]} Qe5 {[%clk 00:10:56]} {[%emt 00:00:52]} 37. Qa4
{[%clk 00:01:50]} {[%emt 00:00:11]} a6 {[%clk 00:06:00]} {[%emt 00:05:27]} 38.
R6d5 {[%clk 00:01:55]} {[%emt 00:00:25]} Qe8 {[%clk 00:05:49]} {[%emt
00:00:41]} 39. Qf4 {[%clk 00:01:59]} {[%emt 00:00:25]} b5 {[%clk 00:05:25]}
{[%emt 00:00:55]} 40. Qf5 {[%clk 00:01:56]} {[%emt 00:00:33]} g6 {[%clk
00:04:47]} {[%emt 00:01:08]} 41. Qf4 {[%clk 00:14:04]} {[%emt 00:03:52]} Bc7
{[%clk 00:19:33]} {[%emt 00:01:14]} 42. Qxh6+ {[%clk 00:14:16]} {[%emt
00:00:17]} Kg8 {[%clk 00:19:42]} {[%emt 00:00:20]} 43. Rd7 {[%clk 00:13:26]}
{[%emt 00:01:21]} Rf7 {[%clk 00:18:52]} {[%emt 00:01:21]} 44. Qxg6+ {[%clk
00:13:42]} {[%emt 00:00:14]} Kf8 {[%clk 00:18:45]} {[%emt 00:00:37]} 45. Qh6+
{[%clk 00:13:31]} {[%emt 00:00:41]} Kg8 {[%clk 00:18:53]} {[%emt 00:00:21]} 46.
Rxf7 {[%clk 00:12:33]} {[%emt 00:01:28]} Kxf7 {[%clk 00:18:16]} {[%emt
00:01:07]} 47. Bd5+ {[%clk 00:12:40]} {[%emt 00:00:23]} Ke7 {[%clk 00:18:28]}
{[%emt 00:00:18]} 48. Qg7+ {[%clk 00:12:56]} {[%emt 00:00:13]} Kd8 {[%clk
00:18:07]} {[%emt 00:00:52]} 49. Bc6+ {[%clk 00:13:14]} {[%emt 00:00:13]} Qd7
{[%clk 00:18:11]} {[%emt 00:00:25]} 50. Qxd7# {[%clk 00:13:37]} {[%emt
00:00:07]} 1-0